fUST/lending_fUST_20260328
["ID","MTS","AMOUNT","RATE_DAILY","PERIOD"]
[418966861,1774683046413,-608.519147,0.00019418,2]
[418966862,1774683046424,-7961.13389919,0.00019607,2]
[418966863,1774683046437,-2172.36543763,0.00019607,2]
[418966864,1774683046448,-150.14300254,0.000198,2]
[418966865,1774683046458,-744.32393164,0.00019898,2]
[418966866,1774683046469,-424.43569858,0.00019974,2]
[418966867,1774683046481,-450.81862002,0.00019983,2]
[418966868,1774683046491,-431.83821596,0.00019983,2]
[418966869,1774683046501,-811.47351604,0.00019983,2]
[418966870,1774683046513,-409.56815493,0.00019983,2]
[418966871,1774683046524,-737.22267888,0.00019983,2]
[418966872,1774683046534,-4577.7879045,0.00019999,2]
[418966873,1774683046544,-23246.09646827,0.0002,2]
[418966874,1774683046563,-1541.66666667,0.0002,2]
[418967060,1774684232276,-988.97827215,0.00012829,2]
[418967103,1774684242916,-337.5770144,0.00012829,2]
[418967104,1774684242928,-5000.0,0.00012929,2]
[418967105,1774684242937,-613.0,0.00013562,2]
[418967106,1774684242947,-1000.0,0.00013699,2]
[418967107,1774684242957,-465.0,0.00015736,2]
[418967108,1774684242966,-440.0,0.00015736,2]
[418967109,1774684242976,-391.64947826,0.00016887,2]
[418967110,1774684242986,-279.02982275,0.00017716,2]
[418967111,1774684242995,-228.6906566,0.00017798,2]
[418967112,1774684243004,-350.88006704,0.00017967,2]
[418967113,1774684243014,-1442.61958407,0.00018636,2]
[418967114,1774684243023,-300.0,0.00018646,2]
[418967115,1774684243033,-1200.0,0.00018945,2]
[418967116,1774684243043,-260.1709058,0.00018946,2]
[418967117,1774684243052,-9302.9598058,0.00018946,2]
[418967118,1774684243062,-182.9199374,0.00018946,2]
[418967119,1774684243073,-4580.62418892,0.00019238,2]
[418967120,1774684243082,-1341.96327824,0.00019238,2]
[418967121,1774684243092,-777.30878872,0.00019617,2]
[418967122,1774684243101,-414.74948016,0.00019617,2]
[418967123,1774684243110,-763.98425745,0.00019617,2]
[418967124,1774684243120,-1310.61809579,0.00019617,2]
[418967125,1774684243130,-500.97444984,0.00019973,2]
[418967126,1774684243139,-500.0,0.00019998,2]
[418967127,1774684243148,-500.0,0.00019998,2]
[418967128,1774684243157,-500.0,0.00019998,2]
[418967129,1774684243167,-500.0,0.00019998,2]
[418967130,1774684243176,-500.0,0.00019998,2]
[418967131,1774684243186,-500.0,0.00019998,2]
[418967132,1774684243195,-500.0,0.00019998,2]
[418967133,1774684243205,-500.0,0.00019998,2]
[418967134,1774684243214,-500.0,0.00019998,2]
[418967135,1774684243224,-500.0,0.00019998,2]
[418967136,1774684243234,-500.0,0.00019998,2]
[418967137,1774684243244,-500.0,0.00019998,2]
[418967138,1774684243254,-500.0,0.00019998,2]
[418967139,1774684243264,-500.0,0.00019998,2]
[418967141,1774684243273,-205.25128614,0.00019998,2]
[418967142,1774684243282,-373.66473977,0.00019998,2]
[418967143,1774684243291,-500.0,0.00019998,2]
[418967144,1774684243300,-500.0,0.00019998,2]
[418967145,1774684243310,-500.0,0.00019998,2]
[418967146,1774684243319,-500.0,0.00019998,2]
[418967147,1774684243329,-500.0,0.00019998,2]
[418967149,1774684243338,-480.84166946,0.00019998,2]
[418967150,1774684243348,-596.00568632,0.00019998,2]
[418967151,1774684243357,-500.0,0.00019998,2]
[418967152,1774684243367,-500.0,0.00019998,2]
[418967153,1774684243376,-500.0,0.00019998,2]
[418967154,1774684243386,-500.0,0.00019998,2]
[418967155,1774684243395,-500.0,0.00019998,2]
[418967156,1774684243405,-500.0,0.00019998,2]
[418967157,1774684243414,-500.0,0.00019998,2]
[418967158,1774684243423,-500.0,0.00019998,2]
[418967159,1774684243433,-500.0,0.00019998,2]
[418967160,1774684243442,-500.0,0.00019998,2]
[418967161,1774684243452,-500.0,0.00019998,2]
[418967162,1774684243461,-500.0,0.00019998,2]
[418967163,1774684243471,-500.0,0.00019998,2]
[418967164,1774684243481,-500.0,0.00019998,2]
[418967165,1774684243491,-500.0,0.00019998,2]
[418967166,1774684243500,-200.02048675,0.00019999,2]
[418967167,1774684243510,-500.0,0.00019999,2]
[418967168,1774684243520,-500.0,0.00019999,2]
[418967169,1774684243529,-500.0,0.00019999,2]
[418967170,1774684243538,-500.0,0.00019999,2]
[418967171,1774684243547,-202.72955807,0.00019999,2]
[418967172,1774684243557,-49885.17333451,0.0002,2]
[418967173,1774684243567,-1062.95,0.0002,2]
[418967174,1774684243576,-1000.0,0.0002,2]
[418967175,1774684243586,-608.519147,0.00020117,2]
[418967176,1774684243595,-2254.09310011,0.00020319,2]
[418967177,1774684243604,-183.93056721,0.00020423,120]
[418967178,1774684243613,-1085.0,0.00020752,2]
[418967179,1774684243622,-1381.88229106,0.00020927,2]
[418967180,1774684243631,-1358.19423547,0.00020927,2]
[418967181,1774684243640,-292.25216824,0.00020959,3]
[418967182,1774684243649,-234.97449523,0.00020992,120]
[418967183,1774684243658,-2047.84077467,0.00021036,2]
[418967184,1774684243668,-253.29156452,0.0002107,2]
[418967185,1774684243677,-9302.9598058,0.00021125,2]
[418967186,1774684243687,-455.044711,0.00021163,2]
[418967187,1774684243696,-196.1053888,0.00021163,2]
[418967188,1774684243705,-196.2006776,0.00021163,2]
[418967189,1774684243714,-151.0257013,0.0002117,2]
[418967190,1774684243723,-455.0447111,0.0002117,2]
[418967191,1774684243732,-200.39413204,0.00021456,2]
[418967192,1774684243743,-746.54906429,0.00021496,2]
[418967193,1774684243752,-455.044711,0.00021992,2]
[418967194,1774684243761,-455.044711,0.00021992,2]
[418967195,1774684243770,-280.7985011,0.00021992,2]
[418967196,1774684243779,-175561.42487326,0.00022,2]
[418967197,1774684243789,-253.29156451,0.00022136,2]
[418967198,1774684243798,-1062.95,0.000225,2]
[418967199,1774684243807,-1341.07388578,0.0002274,2]
[418967200,1774684243816,-456.9741702,0.00022974,2]
[418967201,1774684243826,-270.83333333,0.00023,2]
[418967202,1774684243835,-253.29156451,0.00023202,2]
[418967203,1774684243845,-222.76,0.00023288,4]
[418967204,1774684243854,-9302.9598058,0.00023304,2]
[418967205,1774684243864,-215.839,0.00023704,4]
[418967206,1774684243873,-151.0,0.00023802,2]
[418967207,1774684243882,-500.0,0.00023972,2]
[418967208,1774684243891,-480.86140532,0.00023972,2]
[418967209,1774684243900,-345.0,0.0002403,2]
[418967210,1774684243910,-500.0,0.00024136,2]
[418967211,1774684243919,-503.8409298,0.00024136,2]
[418967212,1774684243927,-500.0,0.00024136,2]
[418967213,1774684243937,-505.19772124,0.00024136,2]
[418967214,1774684243947,-500.12370442,0.00024136,2]
[418967215,1774684243957,-253.29156451,0.00024268,2]
[418967216,1774684243966,-501.10679236,0.00024463,2]
[418967217,1774684243976,-503.20972163,0.00024464,2]
[418967218,1774684243985,-196.2006776,0.00024575,2]
[418967219,1774684243995,-196.2006776,0.00024575,2]
[418967220,1774684244004,-324.5558496,0.00024575,2]
[418967221,1774684244013,-196.2006776,0.00024575,2]
[418967222,1774684244023,-196.2113003,0.00024575,2]
[418967223,1774684244034,-196.2006776,0.00024575,2]
[418967224,1774684244043,-324.8269307,0.00024575,2]
[418967225,1774684244053,-196.2006777,0.00024575,2]
[418967226,1774684244063,-196.2113003,0.00024575,2]
[418967227,1774684244072,-196.2006776,0.00024575,2]
[418967228,1774684244082,-196.2006776,0.00024575,2]
[418967229,1774684244091,-200.6107437,0.00024575,2]
[418967230,1774684244100,-196.2006776,0.00024575,2]
[418967231,1774684244109,-196.2006776,0.00024575,2]
[418967232,1774684244118,-196.2006776,0.00024575,2]
[418967233,1774684244127,-454.7563949,0.00024575,2]
[418967234,1774684244137,-196.2006776,0.00024576,2]
[418967235,1774684244147,-454.8567267,0.00024576,2]
[418967236,1774684244156,-324.8269307,0.00024576,2]
[418967237,1774684244166,-358.9843316,0.00024576,2]
[418967238,1774684244175,-196.2006776,0.00024576,2]
[418967239,1774684244184,-196.2006776,0.00024576,2]
[418967240,1774684244194,-455.044711,0.00024576,2]
[418967241,1774684244203,-196.2006776,0.00024576,2]
[418967242,1774684244213,-326.2804901,0.00024576,2]
[418967243,1774684244222,-324.8269307,0.00024576,2]
[418967244,1774684244232,-455.044711,0.00024576,2]
[418967245,1774684244242,-196.2006776,0.00024576,2]
[418967246,1774684244253,-196.2006776,0.00024576,2]
[418967247,1774684244262,-455.044711,0.00024576,2]
[418967248,1774684244271,-150.75223934,0.00024657,9]
[418967249,1774684244281,-500.0,0.00024657,9]
[418967250,1774684244290,-643.98,0.00024657,7]
[418967251,1774684244300,-396.19443826,0.000247,14]
[418967252,1774684244310,-500.0,0.00024825,2]
[418967253,1774684244319,-1327.19833652,0.0002484,2]
[418967254,1774684244328,-35567.873725,0.000249,2]
[418967255,1774684244338,-500.0,0.00024931,9]
[418967257,1774684244347,-643.98,0.00024931,7]
[418967258,1774684244357,-250.0,0.00025,5]
[418967259,1774684244366,-250.0,0.00025,5]
[418967260,1774684244375,-1062.95,0.00025,2]
[418967261,1774684244385,-7113.574745,0.0002518,2]
[418967262,1774684244394,-35812.81247858,0.0002519,2]
[418967263,1774684244404,-500.0,0.00025205,9]
[418967264,1774684244413,-643.98,0.00025205,7]
[418967265,1774684244423,-253.29156451,0.00025334,2]
[418967266,1774684244432,-173.0,0.00025342,16]
[418967267,1774684244442,-167.2676876,0.00025397,2]
[418967268,1774684244451,-455.044711,0.00025397,2]
[418967269,1774684244460,-196.2006776,0.00025397,2]
[418967270,1774684244470,-455.044711,0.00025397,2]
[418967271,1774684244479,-324.8434484,0.00025397,2]
[418967272,1774684244488,-455.044711,0.00025397,2]
[418967273,1774684244498,-453.2256821,0.00025397,2]
[418967274,1774684244507,-324.8269307,0.00025397,2]
[418967275,1774684244516,-195.7699549,0.00025397,2]
[418967276,1774684244526,-454.7400392,0.00025397,2]
[418967277,1774684244536,-196.2006776,0.00025397,2]
[418967278,1774684244545,-324.8269307,0.00025397,2]
[418967279,1774684244555,-455.044711,0.00025397,2]
[418967280,1774684244564,-324.8269307,0.00025397,2]
[418967281,1774684244573,-455.044711,0.00025402,2]
[418967282,1774684244582,-324.8269307,0.00025402,2]
[418967283,1774684244592,-454.7400393,0.00025402,2]
[418967284,1774684244601,-196.2006776,0.00025402,2]
[418967285,1774684244611,-324.8269307,0.00025402,2]
[418967286,1774684244713,-324.8269307,0.00025402,2]
[418967287,1774684244723,-240.0,0.00025425,6]
[418967288,1774684244732,-99590.04643,0.00025434,2]
[418967289,1774684244742,-487.0,0.00025434,2]
[418967290,1774684244751,-487.0,0.00025434,2]
[418967291,1774684244760,-487.0,0.00025434,2]
[418967292,1774684244770,-639.04,0.00025434,2]
[418967293,1774684244779,-75655.08204782,0.00025444,2]
[418967295,1774684246842,-6850.05147747,0.00025444,2]
[418967495,1774685432504,-5000.0,7.353e-05,10]
[418967497,1774685432514,-4623.23348289,7.6e-05,2]
[418967499,1774685432526,-1832.63308145,7.6e-05,2]
[418967501,1774685432535,-690.43742002,7.655e-05,2]
[418967503,1774685432545,-528.0,7.655e-05,2]
[418967505,1774685432554,-10.08543139,0.00013274,2]
[418967508,1774685432567,-143.91456861,0.00013274,2]
[418967510,1774685432576,-300.0,0.00013698,2]
[418967512,1774685432586,-606.0,0.00013698,2]
[418967514,1774685432594,-69.802677,0.00013699,2]
[418967555,1774685438627,-930.197323,0.00013699,2]
[418967556,1774685438636,-154.0,0.00013699,2]
[418967557,1774685438645,-192.22325269,0.00013699,2]
[418967558,1774685438655,-500.0,0.000139,2]
[418967559,1774685438664,-500.0,0.00013925,2]
[418967560,1774685438673,-500.0,0.00013925,2]
[418967561,1774685438682,-500.0,0.00013925,2]
[418967562,1774685438692,-500.0,0.00013925,2]
[418967563,1774685438702,-300.0,0.00013972,2]
[418967564,1774685438712,-300.0,0.00013972,2]
[418967565,1774685438721,-300.0,0.00013972,2]
[418967566,1774685438730,-300.0,0.00013972,2]
[418967567,1774685438739,-300.0,0.00013972,2]
[418967568,1774685438749,-300.0,0.00013972,2]
[418967569,1774685438758,-300.0,0.00013972,2]
[418967570,1774685438767,-300.0,0.00013972,2]
[418967571,1774685438777,-300.0,0.00013972,2]
[418967572,1774685438786,-300.0,0.00013972,2]
[418967573,1774685438795,-300.0,0.00013972,2]
[418967574,1774685438805,-300.0,0.00013972,2]
[418967575,1774685438814,-300.0,0.00013972,2]
[418967576,1774685438823,-300.0,0.00013972,2]
[418967577,1774685438832,-300.0,0.00013972,2]
[418967578,1774685438841,-426.0,0.00015983,2]
[418967579,1774685438850,-175.0,0.00018849,3]
[418967580,1774685438859,-150.14300254,0.000198,2]
[418967581,1774685438868,-2599.547105,0.00020648,2]
[418967582,1774685438877,-600.0,0.00022237,10]
[418967583,1774685438886,-258.461015,0.0002254,2]
[418967584,1774685438896,-701.47587469,0.00022563,2]
[418967585,1774685438904,-689.45126187,0.00022563,2]
[418967586,1774685438914,-270.83333333,0.00023,2]
[418967587,1774685438923,-258.461015,0.00023489,2]
[418967588,1774685438932,-1219.71757795,0.0002375,2]
[418967589,1774685438941,-500.0,0.00024159,2]
[418967590,1774685438950,-258.461015,0.00024437,2]
[418967591,1774685438959,-720.0,0.00024461,10]
[418967592,1774685438967,-324.86827357,0.0002448,2]
[418967593,1774685438976,-196.2006776,0.0002458,2]
[418967594,1774685438985,-196.2006776,0.0002458,2]
[418967595,1774685438995,-324.8269307,0.0002458,2]
[418967596,1774685439003,-455.044711,0.0002458,2]
[418967597,1774685439012,-196.2006776,0.0002458,2]
[418967598,1774685439021,-324.8269307,0.0002458,2]
[418967599,1774685439030,-196.2006776,0.0002458,2]
[418967600,1774685439039,-435.0086086,0.0002475,2]
[418967601,1774685439048,-481.12421873,0.0002475,2]
[418967602,1774685439056,-2073.74740081,0.0002475,2]
[418967603,1774685439065,-160.0,0.00024995,3]
[418967604,1774685439075,-671.96979995,0.00025,5]
[418967605,1774685439084,-1202.75597083,0.00025,5]
[418967606,1774685439093,-360.34872823,0.00025022,2]
[418967607,1774685439102,-2500.0,0.000251,2]
[418967608,1774685439111,-275.54,0.000251,9]
[418967609,1774685439120,-4577.7879045,0.00025142,2]
[418967610,1774685439129,-227539.07603592,0.00025143,2]
[418967611,1774685439140,-941.81791522,0.00025143,2]
[418967612,1774685439151,-50686.54104647,0.00025143,2]
[418967613,1774685439162,-110861.52324936,0.00025143,2]
[418967614,1774685439176,-48624.48086077,0.00025143,2]
[418967626,1774685441408,-184.0,0.00021802,2]
[418967627,1774685441418,-184.0,0.00024802,2]
[418967628,1774685441427,-289.01944389,0.00025143,2]
[418967629,1774685441438,-6950.0,0.00025143,2]
[418967630,1774685441492,-1019.05201729,0.00025143,2]
[418967639,1774685444171,-468.942,0.00013562,2]
[418967640,1774685444183,-4531.058,0.00013562,2]
[418967641,1774685444192,-821.44199837,0.00025143,2]
[418967642,1774685444203,-1179.67946753,0.00025143,2]
[418967643,1774685444214,-3256.23330091,0.00025143,2]
[418967644,1774685444452,-7000.0,0.00025143,2]
[418967651,1774685447021,-31193.57277566,0.00025143,2]
[418967652,1774685447032,-45966.56643804,0.00025143,2]
[418967653,1774685447043,-276.5150003,0.00025143,2]
[418967654,1774685447055,-72278.87929682,0.00025143,2]
[418967805,1774686638034,-2022.38299121,7.328e-05,10]
[418967806,1774686638046,-2977.61700879,7.328e-05,10]
[418967807,1774686638055,-4509.8685097,7.402e-05,2]
[418967808,1774686638065,-524.0,7.402e-05,2]
[418967809,1774686638074,-1200.0,7.501e-05,2]
[418967810,1774686638083,-300.0,7.654e-05,2]
[418967811,1774686638093,-643.72574031,7.655e-05,2]
[418967812,1774686638102,-300.0,7.807e-05,2]
[418967813,1774686638112,-300.0,7.807e-05,2]
[418967814,1774686638122,-300.0,7.807e-05,2]
[418967815,1774686638131,-300.0,7.807e-05,2]
[418967816,1774686638140,-300.0,7.807e-05,2]
[418967817,1774686638149,-300.0,7.807e-05,2]
[418967819,1774686638159,-300.0,7.807e-05,2]
[418967821,1774686638168,-300.0,7.807e-05,2]
[418967823,1774686638177,-300.0,7.807e-05,2]
[418967824,1774686638186,-300.0,7.807e-05,2]
[418967825,1774686638196,-300.0,7.807e-05,2]
[418967826,1774686638208,-300.0,7.807e-05,2]
[418967827,1774686638218,-300.0,7.807e-05,2]
[418967828,1774686638228,-300.0,7.807e-05,2]
[418967829,1774686638238,-300.0,7.807e-05,2]
[418967830,1774686638248,-901.0,8.251e-05,2]
[418967831,1774686638257,-420.0,8.419e-05,2]
[418967832,1774686638267,-587.0,9.261e-05,2]
[418967833,1774686638277,-823.0,0.00010187,2]
[418967834,1774686638286,-1152.0,0.00011206,2]
[418967835,1774686638295,-1613.0,0.00012327,2]
[418967836,1774686638305,-338.0,0.0001356,2]
[418967837,1774686638315,-1000.0,0.00013699,2]
[418967838,1774686638324,-500.0,0.00013925,2]
[418967839,1774686638335,-500.0,0.0001416,2]
[418967840,1774686638345,-500.0,0.0001416,2]
[418967841,1774686638355,-500.0,0.0001416,2]
[418967842,1774686638364,-1000.0,0.00014473,2]
[418967843,1774686638373,-1000.0,0.00014708,2]
[418967844,1774686638383,-1000.0,0.00014708,2]
[418967845,1774686638394,-1500.0,0.00015021,2]
[418967846,1774686638403,-1500.0,0.00015256,2]
[418967847,1774686638412,-1500.0,0.00015256,2]
[418967848,1774686638422,-600.0,0.0001556,2]
[418967849,1774686638431,-2000.0,0.00015569,2]
[418967850,1774686638441,-2000.0,0.00015804,2]
[418967851,1774686638451,-2000.0,0.00015804,2]
[418967852,1774686638461,-1177.22133762,0.00016117,2]
[418967853,1774686638474,-1322.77866238,0.00016117,2]
[418967854,1774686638484,-2500.0,0.00016352,2]
[418967855,1774686638493,-2500.0,0.00016352,2]
[418967856,1774686638503,-3000.0,0.00016665,2]
[418967857,1774686638512,-3000.0,0.000169,2]
[418967858,1774686638521,-3000.0,0.000169,2]
[418967859,1774686638530,-500.0,0.00017116,2]
[418967860,1774686638543,-720.0,0.00017116,2]
[418967861,1774686638552,-3500.0,0.00017213,2]
[418967862,1774686638562,-3500.0,0.00017448,2]
[418967863,1774686638571,-3500.0,0.00017448,2]
[418967864,1774686638582,-3909.98409527,0.00017761,2]
[418967865,1774686638592,-4000.0,0.00017996,2]
[418967866,1774686638601,-4000.0,0.00017996,2]
[418967867,1774686638610,-4500.0,0.00018544,2]
[418967868,1774686638620,-4500.0,0.00018544,2]
[418967869,1774686638630,-864.0,0.00018828,2]
[418967870,1774686638639,-157.0,0.00018932,3]
[418967871,1774686638649,-5000.0,0.00019092,2]
[418967872,1774686638658,-1000.0,0.00019092,2]
[418967873,1774686638667,-166.0,0.000198,3]
[418967874,1774686638675,-161.0,0.000199,3]
[418967875,1774686638684,-166.0,0.000199,3]
[418967876,1774686638694,-208.18497109,0.00020577,2]
[418967877,1774686638703,-500.0,0.00020577,2]
[418967878,1774686638712,-500.0,0.00020577,2]
[418967879,1774686638723,-514.0859804,0.00020577,2]
[418967880,1774686638731,-343.41581022,0.00020577,2]
[418967881,1774686638741,-500.0,0.00020577,2]
[418967882,1774686638750,-500.0,0.00020577,2]
[418967883,1774686638758,-499.76605419,0.00020577,2]
[418967884,1774686638767,-500.0,0.00020577,2]
[418967885,1774686638776,-15380.3736,0.00020578,2]
[418967886,1774686638785,-2532.09245669,0.0002068,2]
[418967887,1774686638794,-1000.0,0.0002071,2]
[418967888,1774686638803,-1000.0,0.0002078,2]
[418967889,1774686638812,-231.88629384,0.00021824,5]
[418967890,1774686638821,-2532.09245667,0.00021846,2]
[418967891,1774686638831,-300.0,0.00021918,2]
[418967892,1774686638840,-500.0,0.00021925,2]
[418967893,1774686638849,-500.0,0.00021967,2]
[418967894,1774686638859,-439.0,0.00022317,2]
[418967895,1774686638868,-736.0,0.00022317,2]
[418967896,1774686638877,-184.0,0.00022317,2]
[418967897,1774686638886,-162.380719,0.00022368,2]
[418967898,1774686638895,-151.0,0.00022368,2]
[418967899,1774686638904,-162.380719,0.00022368,2]
[418967900,1774686638913,-537.6845,0.00022368,2]
[418967901,1774686638922,-537.6845,0.00022368,2]
[418967902,1774686638931,-2150.738,0.00022368,2]
[418967903,1774686638941,-557.5788265,0.00022423,2]
[418967904,1774686638951,-230.33171921,0.00022473,2]
[418967905,1774686638961,-578.20924308,0.00022478,2]
[418967906,1774686638971,-1008.96022751,0.00022515,2]
[418967907,1774686638983,-599.60298507,0.00022533,2]
[418967908,1774686638993,-621.78829552,0.00022588,2]
[418967909,1774686639003,-644.79446244,0.00022643,2]
[418967910,1774686639013,-1000.0,0.00022781,10]
[418967911,1774686639030,-244.0,0.00022781,10]
[418967912,1774686639044,-168.3888056,0.00022916,2]
[418967913,1774686639055,-151.0,0.00022916,2]
[418967914,1774686639064,-557.5788265,0.00022916,2]
[418967915,1774686639074,-2230.315306,0.00022916,2]
[418967916,1774686639084,-270.83333333,0.00023,2]
[418967917,1774686639093,-2532.09245667,0.00023012,2]
[418967918,1774686639102,-500.0,0.00023156,2]
[418967919,1774686639111,-541.91069065,0.00023156,2]
[418967920,1774686639120,-500.0,0.00023156,2]
[418967921,1774686639130,-162.380719,0.00023464,2]
[418967922,1774686639139,-151.0,0.00023464,2]
[418967923,1774686639149,-578.20924308,0.00023464,2]
[418967924,1774686639158,-2312.83697232,0.00023464,2]
[418967925,1774686639167,-168.3888056,0.00023737,2]
[418967926,1774686639176,-324.8269307,0.00023758,2]
[418967927,1774686639185,-324.1627772,0.00023758,2]
[418967928,1774686639195,-324.8269307,0.00023758,2]
[418967929,1774686639205,-324.8269307,0.00023777,2]
[418967930,1774686639216,-420.0,0.0002382,2]
[418967931,1774686639227,-5348.09666053,0.00023886,2]
[418967932,1774686639238,-5000.0,0.00023886,2]
[418967933,1774686639248,-5000.0,0.00023886,2]
[418967934,1774686639257,-5000.0,0.00023886,2]
[418967935,1774686639266,-5000.0,0.00023886,2]
[418967936,1774686639275,-500.0,0.00023961,2]
[418967937,1774686639284,-3837.0,0.00024,6]
[418967938,1774686639293,-160.0,0.00024,10]
[418967939,1774686639303,-161.84565601,0.00024,7]
[418967940,1774686639312,-212.15047549,0.00024012,2]
[418967941,1774686639322,-2398.4119403,0.00024012,2]
[418967942,1774686639331,-898508.00612593,0.00024072,3]
[418967943,1774686639340,-270.83333333,0.00024072,3]
[418967944,1774686639349,-17031.9172,0.00024172,2]
[418967945,1774686639358,-3000.881907,0.00024172,2]
[418967946,1774686639367,-2532.09245667,0.00024178,2]
[418967947,1774686639377,-220.432,0.00024268,6]
[418967948,1774686639386,-168.0,0.000245,10]
[418967949,1774686639395,-1000.0,0.00024509,2]
[418967950,1774686639405,-2487.15318209,0.0002456,2]
[418967951,1774686639414,-327.6471407,0.00024592,2]
[418967952,1774686639423,-196.1748999,0.00024592,2]
[418967953,1774686639433,-500.0,0.00024656,2]
[418967954,1774686639443,-500.0,0.00024657,9]
[418967955,1774686639452,-646.59025784,0.00024681,2]
[418967956,1774686639461,-270.83333333,0.000248,3]
[418967957,1774686639470,-500.0,0.00024931,9]
[418967958,1774686639480,-500.0,0.00024932,2]
[418967959,1774686639489,-500.0,0.00024932,2]
[418967960,1774686639499,-501.17258467,0.00024932,2]
[418967962,1774686639509,-495.87068025,0.00025,5]
[418967963,1774686639519,-1983.482721,0.00025,5]
[418967964,1774686639528,-151.0,0.00025,12]
[418967965,1774686639539,-151.0,0.00025,17]
[418967966,1774686639549,-151.0,0.00025,14]
[418967967,1774686639559,-151.0,0.00025,19]
[418967968,1774686639571,-151.0,0.00025,15]
[418967969,1774686639580,-151.0,0.00025,14]
[418967970,1774686639590,-151.0,0.00025,19]
[418967971,1774686639599,-151.0,0.00025,12]
[418967972,1774686639609,-160.0,0.00025,14]
[418967973,1774686639619,-803.74216731,0.00025,5]
[418967974,1774686639629,-894.39671271,0.00025,5]
[418967975,1774686639639,-15918.2739317,0.00025011,2]
[418967976,1774686639648,-5750.9568167,0.00025011,2]
[418967977,1774686639658,-4015.1085824,0.00025011,2]
[418967978,1774686639667,-1708.2475491,0.00025011,2]
[418967979,1774686639677,-151.0,0.00025043,2]
[418967981,1774686639686,-151.0,0.00025043,2]
[418967982,1774686639697,-181.625563,0.00025043,2]
[418967983,1774686639707,-1500.0,0.00025057,2]
[418967984,1774686639716,-1000.0,0.0002506,10]
[418967985,1774686639726,-492.0,0.0002506,10]
[418967986,1774686639735,-487.0,0.0002506,2]
[418967987,1774686639745,-730.09,0.0002506,2]
[418967988,1774686639755,-151.0,0.000251,20]
[418967989,1774686639764,-174.61919141,0.00025106,2]
[418967990,1774686639774,-2579.17784983,0.00025108,2]
[418967991,1774686639785,-421.0,0.00025143,10]
[418967992,1774686639795,-1172.0,0.00025143,10]
[418967993,1774686639804,-866.02359372,0.00025143,2]
[418967994,1774686639814,-783.01549549,0.00025143,2]
[418967995,1774686639824,-203.16356658,0.00025143,2]
[418967996,1774686639833,-365.69441984,0.00025143,2]
[418967997,1774686639842,-650.12341304,0.00025143,2]
[418967998,1774686639851,-402.48002152,0.00025143,2]
[418967999,1774686639860,-1015.81783288,0.00025143,2]
[418968000,1774686639870,-202.09,0.00025143,30]
[418968001,1774686639880,-447.87597667,0.00025143,2]
[418968002,1774686639889,-1539.59749995,0.00025143,2]
[418968003,1774686639899,-1000.0,0.00025143,2]
[418968004,1774686639909,-1392.02754754,0.00025143,2]
[418968005,1774686639918,-806.17675801,0.00025143,2]
[418968006,1774686639927,-724.46403873,0.00025143,2]
[418968007,1774686639937,-500.0,0.00025199,2]
[418968008,1774686639946,-563.48,0.00025199,7]
[418968009,1774686639957,-508.93627625,0.00025199,9]
[418968010,1774686639966,-151.0,0.000252,12]
[418968011,1774686639976,-151.0,0.000252,20]
[418968012,1774686639985,-151.0,0.000252,17]
[418968013,1774686639995,-151.0,0.000252,15]
[418968014,1774686640004,-151.0,0.000252,16]
[418968015,1774686640013,-151.0,0.000252,17]
[418968016,1774686640022,-151.0,0.000252,15]
[418968017,1774686640031,-151.0,0.000252,19]
[418968018,1774686640041,-151.0,0.000252,19]
[418968019,1774686640051,-500.0,0.00025205,9]
[418968020,1774686640059,-7308.3776365,0.00025312,2]